bitfinex/quotes_SOLUSD_20250617
["timestamp","ask_amount","ask_price","bid_price","bid_amount"]
[1750176333884,35.32731607,147.77,147.71,11.55898871]
[1750176334086,11.55898871,147.75,147.71,11.55898871]
[1750176334388,11.55898871,147.78,147.73,11.55898871]
[1750176334582,188.03898871,147.77,147.73,11.55898871]
[1750176334785,159.45898871,147.77,147.73,11.55898871]
[1750176335012,188.01898871,147.76,147.72,11.55898871]
[1750176335181,159.45898871,147.75,147.71,11.55898871]
[1750176335719,147.9,147.74,147.72,18.32821167]
[1750176335921,147.9,147.73,147.72,6.76922296]
[1750176337099,147.9,147.73,147.72,18.32821167]
[1750176337305,147.9,147.73,147.69,16.92716361]
[1750176337498,147.9,147.73,147.71,11.55898871]
[1750176337704,159.45898871,147.72,147.66,18.33130348]
[1750176338006,188.05898871,147.71,147.67,11.55898871]
[1750176338191,176.5,147.71,147.67,11.55898871]
[1750176338529,188.05898871,147.71,147.67,11.55898871]
[1750176339104,159.45898871,147.7,147.66,18.33130348]
[1750176339718,159.45898871,147.7,147.63,43.07635239]
[1750176339938,11.55898871,147.64,147.59,16.9382474]
[1750176340094,28.84,147.66,147.6,11.55898871]
[1750176340294,40.39898871,147.65,147.6,11.55898871]
[1750176340491,40.39898871,147.65,147.61,11.55898871]
[1750176340899,40.39898871,147.65,147.61,18.33329276]
[1750176341101,11.55898871,147.63,147.58,1.5047]
[1750176341319,11.55898871,147.63,147.59,11.55898871]
[1750176341798,11.55898871,147.64,147.59,11.55898871]
[1750176342117,11.55898871,147.64,147.6,11.55898871]
[1750176342302,28.84,147.65,147.61,11.55898871]
[1750176342500,11.55898871,147.64,147.6,11.55898871]
[1750176342700,28.84,147.65,147.59,18.3345155]
[1750176342701,11.55898871,147.63,147.59,18.3345155]
[1750176343111,11.55898871,147.64,147.59,18.3345155]
[1750176343508,40.39898871,147.65,147.6,11.55898871]
[1750176344219,28.84,147.65,147.6,11.55898871]
[1750176344423,180.38,147.68,147.63,11.55898871]
[1750176344622,28.86,147.67,147.65,11.55898871]
[1750176344797,154.38,147.68,147.66,11.55898871]
[1750176344991,147.9,147.67,147.64,0.28432314]
[1750176345199,147.9,147.67,147.64,6.77309799]
[1750176346201,147.9,147.67,147.66,11.55898871]
[1750176346400,147.9,147.67,147.66,18.33130348]
[1750176346810,147.9,147.67,147.63,26.0]
[1750176347114,147.9,147.66,147.65,11.55898871]
[1750176347416,40.41898871,147.7,147.65,11.55898871]
[1750176347617,5.01438191,147.69,147.65,11.55898871]
[1750176348018,11.55898871,147.66,147.62,6.77384867]
[1750176348222,11.55898871,147.66,147.6,6.77506775]
[1750176348223,11.55898871,147.64,147.6,6.77506775]
[1750176348408,11.55898871,147.63,147.58,6.7759859]
[1750176348615,11.55898871,147.63,147.58,18.33497461]
[1750176348922,11.55898871,147.61,147.57,6.77628485]
[1750176349121,11.55898871,147.58,147.51,6.77920141]
[1750176349319,28.92,147.57,147.51,18.33819012]
[1750176349528,40.47898871,147.56,147.51,18.33819012]
[1750176349712,40.63898871,147.56,147.51,6.77920141]
[1750176349912,40.63898871,147.56,147.5,26.0]
[1750176349913,11.55898871,147.54,147.5,18.33849463]
[1750176350108,29.08,147.56,147.5,18.33849463]
[1750176350315,11.55898871,147.55,147.5,11.55898871]
[1750176350505,29.08,147.56,147.49,11.55898871]
[1750176350709,11.55898871,147.54,147.49,18.33899214]
[1750176351048,29.08,147.56,147.52,11.55898871]
[1750176351250,29.08,147.56,147.53,11.55898871]
[1750176351411,29.08,147.56,147.55,11.55898871]
[1750176351623,18.03898871,147.59,147.51,0.28432314]
[1750176351624,165.93898871,147.59,147.51,0.28432314]
[1750176351859,195.01898871,147.59,147.54,11.55898871]
[1750176352019,195.01898871,147.59,147.55,11.55898871]
[1750176352222,165.93898871,147.59,147.55,11.55898871]
[1750176352525,194.99898871,147.59,147.55,18.33627261]
[1750176353423,183.44,147.59,147.55,18.33627261]
[1750176353654,183.44,147.59,147.56,11.55898871]
[1750176354255,147.9,147.59,147.58,11.55898871]
[1750176354444,29.06,147.62,147.59,6.77552679]
[1750176354762,29.06,147.62,147.59,18.3345155]
[1750176355331,6.48,147.64,147.6,11.55898871]
[1750176355834,35.52,147.64,147.6,11.55898871]
[1750176356441,35.52,147.64,147.61,18.3334177]
[1750176356644,6.48,147.64,147.61,6.77442899]
[1750176356852,6.48,147.64,147.62,11.55898871]
[1750176357024,147.9,147.67,147.63,11.55898871]
[1750176357225,147.9,147.67,147.65,11.55898871]
[1750176357659,147.9,147.67,147.66,11.55898871]
[1750176358061,6.48,147.69,147.66,11.55898871]
[1750176358263,13.76249198,147.71,147.68,11.55898871]
[1750176358435,54.42148069,147.71,147.67,11.55898871]
[1750176358628,54.42148069,147.71,147.67,18.3304928]
[1750176358952,42.86249198,147.71,147.67,18.3304928]
[1750176359173,42.86249198,147.71,147.69,11.55898871]
[1750176359470,42.86249198,147.71,147.7,11.55898871]
[1750176359471,13.76249198,147.71,147.7,11.55898871]
[1750176359670,13.76249198,147.71,147.69,11.55898871]
[1750176360270,13.76249198,147.71,147.68,11.55898871]
[1750176360472,11.55898871,147.69,147.65,11.55898871]
[1750176360770,11.55898871,147.69,147.6,11.55898871]
[1750176360978,11.55898871,147.64,147.6,11.55898871]
[1750176361151,11.55898871,147.63,147.59,11.55898871]
[1750176361495,40.65898871,147.62,147.58,6.7759859]
[1750176362344,11.55898871,147.6,147.54,6.3079]
[1750176362669,11.55898871,147.6,147.55,18.33635231]
[1750176362870,16.72213252,147.59,147.55,23.49949612]
[1750176363561,16.72213252,147.58,147.55,6.7773636]
[1750176363766,45.80213252,147.59,147.55,6.7773636]
[1750176364152,45.80213252,147.59,147.55,23.49949612]
[1750176364558,147.9,147.61,147.58,16.72213252]
[1750176364764,147.9,147.61,147.59,16.72213252]
[1750176364967,164.62213252,147.61,147.57,16.72213252]
[1750176365770,147.9,147.61,147.57,16.72213252]
[1750176366583,147.9,147.61,147.58,6.7759859]
[1750176367064,147.9,147.61,147.58,23.49811842]
[1750176367459,164.62213252,147.61,147.58,6.7759859]
[1750176367662,147.9,147.61,147.57,6.77630417]
[1750176367849,16.72213252,147.6,147.57,6.77630417]
[1750176368249,147.9,147.61,147.57,23.49843669]
[1750176368456,16.72213252,147.59,147.55,23.4993853]
[1750176369085,45.74213252,147.6,147.56,16.72213252]
[1750176369256,29.02,147.6,147.56,16.72213252]
[1750176369580,29.02,147.6,147.57,16.72213252]
[1750176369782,29.02,147.6,147.56,16.72213252]
[1750176369971,147.9,147.61,147.55,25.42690164]
[1750176370174,13.52711197,147.66,147.63,26.0]
[1750176370358,13.52711197,147.66,147.65,18.933972]
[1750176370558,16.72213252,147.7,147.66,0.28432314]
[1750176370788,16.72213252,147.69,147.65,16.72213252]
[1750176370950,16.72213252,147.69,147.64,16.72213252]
[1750176371157,16.72213252,147.66,147.62,6.77414984]
[1750176371454,4.99878177,147.69,147.63,16.72213252]
[1750176371676,16.72213252,147.68,147.62,23.70952445]
[1750176371870,16.72213252,147.68,147.63,16.72213252]
[1750176372072,16.72213252,147.68,147.64,16.72213252]
[1750176372589,16.72213252,147.68,147.63,16.72213252]
[1750176372801,16.72213252,147.67,147.62,16.72213252]
[1750176373090,55.3,147.67,147.6,6.77506775]
[1750176373278,16.72213252,147.66,147.62,16.72213252]
[1750176373460,46.02213252,147.67,147.62,16.72213252]
[1750176373885,16.72213252,147.66,147.62,23.49628103]
[1750176374092,29.3,147.67,147.62,23.49628103]
[1750176374398,16.72213252,147.66,147.62,23.49628103]
[1750176375105,147.9,147.65,147.63,16.72213252]
[1750176375279,147.9,147.65,147.64,35.37178138]
[1750176375486,12.35556987,147.74,147.65,0.28432314]
[1750176375487,147.9,147.73,147.65,0.28432314]
[1750176375679,147.9,147.73,147.69,16.72213252]
[1750176375680,147.9,147.72,147.69,16.72213252]
[1750176375875,147.9,147.72,147.71,16.72213252]
[1750176376172,56.43686404,147.79,147.71,16.72213252]
[1750176376375,10.01627545,147.78,147.75,16.72213252]
[1750176376691,5.00796972,147.78,147.75,16.72213252]
[1750176377069,56.43686404,147.79,147.75,23.49021863]
[1750176377269,85.69686404,147.79,147.75,23.49021863]
[1750176377469,85.69686404,147.79,147.75,16.72213252]
[1750176377701,68.97473152,147.79,147.74,16.72213252]
[1750176377898,68.97473152,147.79,147.76,16.72213252]
[1750176378197,68.97473152,147.79,147.75,16.72213252]
[1750176378372,39.71473152,147.79,147.75,16.72213252]
[1750176378570,68.97473152,147.79,147.75,16.72213252]
[1750176378769,39.71473152,147.79,147.75,16.72213252]
[1750176379005,13.57174665,147.79,147.78,16.72213252]
[1750176379307,13.57174665,147.79,147.78,23.48894805]
[1750176379602,29.26,147.81,147.78,23.48894805]
[1750176379916,6.78,147.85,147.8,16.72213252]
[1750176380076,36.04,147.85,147.82,16.72213252]
[1750176380611,36.04,147.85,147.83,16.72213252]
[1750176380984,21.69081142,147.9,147.84,16.72213252]
[1750176381290,21.69081142,147.9,147.77,26.0]
[1750176381291,147.9,147.86,147.83,6.76452682]
[1750176381508,13.39501142,147.9,147.85,16.72213252]
[1750176381708,13.39501142,147.9,147.84,18.933972]
[1750176382070,16.72213252,147.88,147.83,6.76452682]
[1750176382296,29.24,147.89,147.83,23.48665934]
[1750176382478,16.72213252,147.87,147.83,6.76452682]
[1750176382825,29.26,147.86,147.83,16.72213252]
[1750176383102,29.26,147.86,147.8,6.76589986]
[1750176383403,29.26,147.86,147.83,16.72213252]
[1750176383878,29.26,147.86,147.8,6.76589986]
[1750176384076,16.72213252,147.85,147.81,16.72213252]
[1750176384573,16.72213252,147.85,147.8,6.76589986]
[1750176385001,36.0232055,147.86,147.79,23.48835874]
[1750176385506,16.72213252,147.83,147.79,6.76622622]
[1750176385676,45.94213252,147.83,147.79,23.48835874]
[1750176386412,16.72213252,147.82,147.79,6.76622622]
[1750176386777,147.9,147.81,147.79,23.48835874]
[1750176386978,147.9,147.81,147.78,23.4888279]
[1750176387193,16.72213252,147.79,147.74,6.76864762]
[1750176387400,16.72213252,147.78,147.74,23.49078014]
[1750176387903,16.72213252,147.79,147.75,16.72213252]
[1750176388110,16.72213252,147.79,147.74,23.49078014]
[1750176388279,16.72213252,147.79,147.74,6.76864762]
[1750176388483,45.92213252,147.8,147.75,16.72213252]
[1750176388707,16.72213252,147.78,147.74,6.76864762]
[1750176388879,16.72213252,147.76,147.72,16.72213252]
[1750176389089,16.72213252,147.75,147.71,6.77002234]
[1750176389293,16.72213252,147.76,147.72,16.72213252]
[1750176389697,29.22,147.77,147.72,16.72213252]
[1750176389925,16.72213252,147.76,147.72,16.72213252]
[1750176390227,29.22,147.77,147.74,16.72213252]
[1750176390614,29.22,147.77,147.73,6.7691058]
[1750176390615,45.94213252,147.77,147.73,6.7691058]
[1750176390919,29.22,147.77,147.73,23.49123832]
[1750176391122,29.22,147.77,147.74,16.72213252]
[1750176391322,29.22,147.77,147.75,16.72213252]
[1750176391627,29.22,147.77,147.74,16.72213252]
[1750176391990,16.72213252,147.8,147.75,16.72213252]
[1750176392191,29.2,147.8,147.77,6.76727346]
[1750176393131,16.72213252,147.81,147.77,23.48940598]
[1750176393423,45.90213252,147.81,147.77,23.48940598]
[1750176393620,164.62213252,147.82,147.78,16.72213252]
[1750176393827,16.72213252,147.81,147.77,23.48940598]
[1750176394325,16.72213252,147.79,147.75,16.72213252]
[1750176394921,16.72213252,147.77,147.74,6.76864762]
[1750176395241,16.72213252,147.77,147.73,16.72213252]
[1750176395242,16.72213252,147.76,147.73,6.76894631]
[1750176395415,147.9,147.75,147.73,6.76894631]
[1750176395600,147.9,147.75,147.73,23.49107883]
[1750176396226,147.9,147.75,147.74,16.72213252]
[1750176396602,147.9,147.75,147.74,23.49078014]
[1750176397227,147.9,147.75,147.71,16.92495875]
[1750176397538,147.9,147.75,147.74,16.72213252]
[1750176398907,147.9,147.75,147.74,23.49078014]
[1750176399310,147.9,147.75,147.74,6.76864762]
[1750176399999,147.9,147.75,147.74,23.49078014]
[1750176400606,147.9,147.75,147.72,16.9239101]
[1750176400919,147.9,147.75,147.74,11.54809602]
[1750176401231,29.14,147.78,147.74,11.54809602]
[1750176401534,11.54809602,147.76,147.71,6.77002234]
[1750176401735,11.54809602,147.73,147.68,6.77139761]
[1750176402065,29.12,147.73,147.68,6.77139761]
[1750176402345,11.54809602,147.69,147.65,11.54809602]
[1750176402508,11.54809602,147.67,147.64,6.77323218]
[1750176402707,11.54809602,147.68,147.64,18.3213282]
[1750176402913,45.82149313,147.69,147.64,23.47472531]
[1750176403110,16.70149313,147.68,147.64,23.47472531]
[1750176403533,16.70149313,147.67,147.64,6.77323218]
[1750176404533,26.0,147.73,147.66,16.70149313]
[1750176404735,12.89010936,147.75,147.72,16.70149313]
[1750176405828,12.89010936,147.75,147.71,16.70149313]
[1750176406408,29.59160249,147.75,147.67,18.64964886]
[1750176406635,16.70149313,147.74,147.69,23.47243225]
[1750176406834,16.70149313,147.71,147.67,23.47334929]
[1750176407138,16.70149313,147.71,147.67,6.77185616]
[1750176407315,16.70149313,147.71,147.67,23.47334929]
[1750176408017,29.08,147.73,147.69,6.77093912]
[1750176408018,16.70149313,147.72,147.69,6.77093912]
[1750176408413,84.73160249,147.75,147.7,16.70149313]
[1750176408615,29.59160249,147.75,147.71,16.70149313]
[1750176408817,29.59160249,147.75,147.72,16.70149313]
[1750176408818,12.89010936,147.75,147.72,16.70149313]
[1750176409122,12.89010936,147.75,147.73,16.70149313]
[1750176409317,147.9,147.74,147.73,16.70149313]
[1750176410223,12.89010936,147.75,147.73,16.70149313]
[1750176410421,12.89010936,147.75,147.74,16.70149313]
[1750176412037,12.89010936,147.75,147.74,23.47014075]
[1750176413951,12.89010936,147.75,147.74,68.40411275]
[1750176414846,12.89010936,147.75,147.74,6.76864762]
[1750176415028,12.89010936,147.75,147.74,23.47014075]
[1750176415231,12.89010936,147.75,147.74,23.75446389]
[1750176416550,12.89010936,147.75,147.74,23.47014075]
[1750176417047,12.89010936,147.75,147.74,6.76864762]
[1750176417558,29.59160249,147.75,147.7,16.70149313]
[1750176417735,16.70149313,147.71,147.67,23.47334929]
[1750176417926,16.70149313,147.71,147.67,6.77185616]
[1750176418118,16.70149313,147.71,147.67,23.47334929]
[1750176418315,29.08,147.72,147.67,23.47334929]
[1750176418518,16.70149313,147.71,147.67,23.47334929]
[1750176418946,16.70149313,147.7,147.67,6.77185616]
[1750176419530,35.84961738,147.72,147.67,23.47334929]
[1750176419531,16.70149313,147.71,147.67,23.47334929]
[1750176420129,16.70149313,147.7,147.66,23.47364352]
[1750176420332,16.70149313,147.71,147.67,16.70149313]
[1750176420730,16.70149313,147.7,147.66,23.47364352]
[1750176420951,147.9,147.74,147.69,16.70149313]
[1750176421137,147.9,147.74,147.7,16.70149313]
[1750176421138,164.60149313,147.74,147.7,16.70149313]
[1750176421322,147.9,147.74,147.71,16.70149313]
[1750176421523,147.9,147.74,147.73,16.70149313]
[1750176421728,147.9,147.74,147.71,0.28432314]
[1750176421931,147.9,147.74,147.71,16.70149313]
[1750176422136,147.9,147.74,147.72,16.70149313]
[1750176422359,147.9,147.74,147.73,16.70149313]
[1750176422906,147.9,147.74,147.73,23.47059893]
[1750176423832,147.9,147.74,147.73,42.40457093]
[1750176424455,12.89010936,147.75,147.74,0.28432314]
[1750176424658,12.89010936,147.75,147.74,16.98581627]
[1750176424837,12.89010936,147.75,147.74,23.75446389]
[1750176425476,12.89010936,147.75,147.74,42.40411275]
[1750176425765,6.1968,147.85,147.77,26.0]
[1750176425942,45.29845997,147.85,147.82,16.70149313]
[1750176426134,40.28167107,147.85,147.82,16.70149313]
[1750176426328,11.22167107,147.85,147.81,16.70149313]
[1750176426526,10.04160718,147.85,147.82,16.70149313]
[1750176426747,5.02487107,147.85,147.83,23.46601995]
[1750176426944,147.9,147.86,147.83,23.46601995]
[1750176427367,147.9,147.86,147.84,16.70149313]
[1750176427780,147.9,147.86,147.83,23.46601995]
[1750176427978,29.02,147.85,147.75,6.7681895]
[1750176428277,152.9196869,147.84,147.78,16.70149313]
[1750176428485,16.70149313,147.82,147.78,16.70149313]
[1750176428959,16.70149313,147.82,147.79,6.76635766]
[1750176429284,147.9,147.84,147.81,16.70149313]
[1750176429570,147.9,147.84,147.83,16.70149313]
[1750176430583,38.29635556,147.87,147.83,16.70149313]
[1750176430755,38.29635556,147.87,147.85,16.70149313]
[1750176431082,38.29635556,147.87,147.85,23.46466828]
[1750176431283,12.91001156,147.87,147.86,16.70149313]
[1750176432754,147.9,147.9,147.86,16.70149313]
[1750176432983,147.9,147.9,147.88,16.70149313]
[1750176433163,147.9,147.9,147.89,6.7617824]
[1750176433661,147.9,147.9,147.89,23.46327553]
[1750176434453,147.9,147.9,147.89,6.7617824]
[1750176434687,26.0,147.87,147.8,1.5742]
[1750176434850,16.70149313,147.85,147.81,16.70149313]
[1750176435054,176.86,147.86,147.84,6.76406926]
[1750176435585,193.56149313,147.86,147.83,6.76442186]
[1750176435769,176.86,147.86,147.83,6.76442186]
[1750176435957,176.86,147.86,147.83,23.46591499]
[1750176436158,176.86,147.86,147.84,16.70149313]
[1750176436461,176.86,147.86,147.83,23.46591499]
[1750176436779,193.56149313,147.86,147.83,6.76442186]
[1750176437461,147.9,147.85,147.84,16.70149313]
[1750176437790,147.9,147.85,147.83,23.46591499]
[1750176438375,147.9,147.85,147.83,6.76442186]
[1750176438684,147.9,147.85,147.83,23.46591499]
[1750176439066,147.9,147.85,147.84,16.70149313]
[1750176439572,147.9,147.85,147.84,23.46556239]
[1750176439957,147.9,147.85,147.84,6.76406926]
[1750176440470,147.9,147.85,147.84,23.46556239]
[1750176440897,147.9,147.9,147.84,59.30970755]
[1750176441191,147.9,147.9,147.88,16.70149313]
[1750176441192,176.82,147.9,147.88,16.70149313]
[1750176441373,147.9,147.9,147.88,16.70149313]
[1750176441767,147.9,147.9,147.88,23.4632854]
[1750176442767,147.9,147.9,147.89,16.70149313]
[1750176443790,147.9,147.9,147.89,23.46327553]
[1750176447594,193.44149313,147.9,147.83,18.47783029]
[1750176447778,176.74,147.9,147.84,6.76406926]
[1750176447979,16.70149313,147.87,147.84,6.76406926]
[1750176448283,28.84,147.86,147.84,6.76406926]
[1750176448698,45.54149313,147.86,147.84,6.76406926]
[1750176448902,16.70149313,147.86,147.84,6.76406926]
[1750176449068,45.56149313,147.87,147.84,6.76406926]
[1750176449474,45.56149313,147.87,147.83,23.4658482]
[1750176449678,16.70149313,147.86,147.83,6.76435507]
[1750176449877,45.56149313,147.87,147.83,23.4658482]
[1750176450094,45.56149313,147.87,147.83,16.70149313]
[1750176450300,45.56149313,147.87,147.82,16.70149313]
[1750176450712,28.86,147.87,147.82,16.70149313]
[1750176450871,16.70149313,147.84,147.81,6.76544212]
[1750176451685,6.76341177,147.86,147.81,6.76544212]
[1750176451888,16.70149313,147.83,147.78,6.76681553]
[1750176452102,28.82,147.83,147.79,16.70149313]
[1750176452281,28.82,147.83,147.8,16.70149313]
[1750176452478,176.72,147.85,147.81,16.70149313]
[1750176452673,193.42149313,147.85,147.8,16.70149313]
[1750176452868,16.70149313,147.84,147.78,23.68385437]
[1750176453072,164.60149313,147.83,147.79,16.70149313]
[1750176453318,16.70149313,147.8,147.75,6.7681895]
[1750176453505,16.70149313,147.8,147.74,6.7684927]
[1750176453506,16.70149313,147.78,147.74,6.7684927]
[1750176453706,16.70149313,147.77,147.73,16.70149313]
[1750176454008,16.70149313,147.76,147.71,6.77002234]
[1750176454208,16.70149313,147.76,147.71,23.47151547]
[1750176454209,28.84,147.76,147.71,23.47151547]
[1750176454503,45.54149313,147.76,147.72,16.70149313]
[1750176455090,45.54149313,147.76,147.72,6.76923568]
[1750176455502,28.84,147.76,147.72,6.76923568]
[1750176455711,45.54149313,147.76,147.72,23.47072881]
[1750176456213,16.70149313,147.74,147.71,6.76991513]
[1750176456506,16.70149313,147.75,147.71,23.47140826]
[1750176457107,28.84,147.76,147.73,16.70149313]
[1750176457306,176.72,147.8,147.75,16.70149313]
[1750176457470,176.72,147.8,147.77,16.70149313]
[1750176457800,10.71150809,147.82,147.79,16.70149313]
[1750176458004,10.71150809,147.82,147.81,16.70149313]
[1750176458201,10.71150809,147.82,147.79,16.70149313]
[1750176458701,10.71150809,147.82,147.8,16.70149313]
[1750176459369,10.71150809,147.82,147.81,16.70149313]
[1750176459772,10.71150809,147.82,147.78,0.14216157]
[1750176459974,10.71150809,147.82,147.79,0.14216157]
[1750176460198,10.71150809,147.82,147.81,16.70149313]
[1750176460422,10.71150809,147.82,147.8,6.76589986]
[1750176460601,10.71150809,147.82,147.81,16.70149313]
[1750176460797,10.71150809,147.82,147.8,23.46739299]
[1750176461106,10.71150809,147.82,147.8,6.76589986]
[1750176461305,10.71150809,147.82,147.81,16.70149313]
[1750176462196,10.71150809,147.82,147.8,23.46739299]
[1750176462404,10.71150809,147.82,147.79,40.38358894]
[1750176462586,10.71150809,147.82,147.81,16.70149313]
[1750176463401,27.41300122,147.82,147.79,23.68209581]
[1750176463996,10.71150809,147.82,147.79,40.38358894]
[1750176464816,10.71150809,147.82,147.8,16.70149313]
[1750176465513,10.71150809,147.82,147.81,42.70149313]
[1750176465820,5.02901818,147.87,147.81,42.70149313]
[1750176465821,11.68901818,147.88,147.81,42.70149313]
[1750176466006,6.66,147.88,147.85,16.70149313]
[1750176466210,6.66,147.88,147.86,16.70149313]
[1750176466407,6.66,147.88,147.87,16.70149313]
[1750176466609,5.02756247,147.9,147.87,16.70149313]
[1750176466806,10.06123888,147.91,147.88,6.76223965]
[1750176467123,10.06123888,147.91,147.88,23.46373278]
[1750176467327,10.06123888,147.91,147.89,16.70149313]
[1750176467622,6.0527,147.93,147.89,16.70149313]
[1750176467826,11.07902342,147.93,147.89,16.70149313]
[1750176468008,18.45258047,147.94,147.91,16.70149313]
[1750176468701,18.45258047,147.94,147.9,16.70149313]
[1750176469037,18.45258047,147.94,147.91,16.70149313]
[1750176470318,18.45258047,147.94,147.87,6.76269696]
[1750176470319,16.70149313,147.92,147.87,6.76269696]
[1750176470506,16.70149313,147.93,147.88,16.70149313]
[1750176470827,16.70149313,147.93,147.89,6.7617824]
[1750176471123,16.70149313,147.92,147.89,6.7617824]
[1750176471323,16.70149313,147.92,147.88,6.76206811]
[1750176471824,46.10149313,147.92,147.88,23.46356124]
[1750176472713,29.4,147.92,147.89,16.70149313]
[1750176473317,194.00149313,147.92,147.88,23.46356124]
[1750176473513,16.70149313,147.91,147.88,6.76206811]
[1750176474918,194.00149313,147.92,147.88,6.76206811]
[1750176475124,177.3,147.92,147.88,23.46356124]
[1750176475622,194.00149313,147.92,147.88,23.46356124]
[1750176475830,194.00149313,147.92,147.87,6.76251613]
[1750176475831,16.70149313,147.9,147.87,6.76251613]
[1750176476030,16.70149313,147.88,147.83,33.61185878]
[1750176476229,16.70149313,147.85,147.82,6.76498444]
[1750176476536,16.70149313,147.83,147.79,6.76635766]
[1750176476710,16.70149313,147.8,147.75,6.7681895]
[1750176476907,16.70149313,147.78,147.75,6.7681895]
[1750176477229,16.70149313,147.79,147.75,23.46968263]
[1750176477930,16.70149313,147.79,147.75,6.7681895]
[1750176478118,11.79372572,147.82,147.75,6.7681895]
[1750176478119,16.70149313,147.78,147.75,6.7681895]
[1750176478321,16.70149313,147.79,147.75,23.46968263]
[1750176478514,147.9,147.78,147.76,16.70149313]
[1750176478715,147.9,147.78,147.75,23.68866327]
[1750176479037,147.9,147.78,147.76,16.70149313]
[1750176479448,147.9,147.78,147.75,23.68866327]
[1750176479626,147.9,147.78,147.75,40.3901564]
[1750176480347,147.9,147.78,147.67,7.02]
[1750176480348,16.70149313,147.76,147.66,23.70310171]
[1750176480547,16.70149313,147.71,147.66,6.77231477]
[1750176480842,29.3,147.75,147.66,6.77231477]
[1750176480843,164.60149313,147.74,147.69,16.70149313]
[1750176481139,164.60149313,147.73,147.68,16.70149313]
[1750176481442,147.9,147.73,147.7,16.70149313]
[1750176481821,147.9,147.73,147.71,16.70149313]
[1750176482035,147.9,147.73,147.71,23.47113352]
[1750176482540,164.60149313,147.73,147.7,6.77044123]
[1750176482716,147.9,147.73,147.71,16.70149313]
[1750176483117,147.9,147.73,147.7,23.47193436]
[1750176483847,147.9,147.73,147.71,16.70149313]
[1750176484019,147.9,147.73,147.61,7.8743]
[1750176484221,16.70149313,147.72,147.67,16.70149313]
[1750176484450,16.70149313,147.71,147.66,42.70149313]
[1750176484626,46.02149313,147.71,147.64,68.49770608]
[1750176484941,29.32,147.71,147.68,16.70149313]
[1750176485317,147.9,147.73,147.68,16.70149313]
[1750176485318,16.70149313,147.72,147.68,16.70149313]
[1750176485525,164.60149313,147.73,147.68,16.70149313]
[1750176485719,147.9,147.73,147.72,16.70149313]
[1750176485943,29.32,147.76,147.72,16.70149313]
[1750176486128,15.10222314,147.8,147.72,16.70149313]
[1750176486129,16.70149313,147.78,147.74,16.70149313]
[1750176486434,29.32,147.77,147.74,16.70149313]
[1750176486744,16.70149313,147.76,147.72,6.76932774]
[1750176486948,46.02149313,147.77,147.73,16.70149313]
[1750176487529,46.00149313,147.77,147.73,23.47038252]
[1750176487729,29.3,147.77,147.73,23.47038252]
[1750176487921,29.3,147.77,147.7,16.70149313]
[1750176487922,16.70149313,147.74,147.7,16.70149313]
[1750176488124,45.98149313,147.74,147.69,23.47243225]
[1750176488324,45.98149313,147.74,147.7,16.70149313]
[1750176488626,16.70149313,147.73,147.69,6.77093912]
[1750176488822,29.28,147.74,147.69,6.77093912]
[1750176488823,29.28,147.74,147.7,16.70149313]
[1750176489057,45.98149313,147.74,147.7,16.70149313]
[1750176489226,29.28,147.74,147.7,16.70149313]
[1750176489425,29.28,147.74,147.69,6.77093912]
[1750176489426,29.28,147.74,147.71,16.70149313]
[1750176489822,29.28,147.74,147.71,23.4713501]
[1750176490238,16.70149313,147.72,147.68,16.70149313]
[1750176490431,16.70149313,147.73,147.68,16.70149313]
[1750176490740,16.70149313,147.73,147.69,16.70149313]
[1750176491064,29.26,147.76,147.72,16.70149313]
[1750176491225,29.26,147.76,147.71,16.70149313]
[1750176491226,45.96149313,147.76,147.71,16.70149313]
[1750176491431,16.70149313,147.74,147.69,26.0]
[1750176491648,16.70149313,147.74,147.7,6.7704807]
[1750176491960,16.70149313,147.75,147.7,23.47197383]
[1750176493152,16.27672857,147.82,147.74,16.70149313]
[1750176493153,21.58397456,147.8,147.74,16.70149313]
[1750176493353,21.58397456,147.8,147.7,66.39817559]
[1750176493354,16.70149313,147.79,147.7,32.7704807]
[1750176493552,45.96149313,147.79,147.75,16.70149313]
[1750176493751,16.70149313,147.78,147.74,23.46994307]
[1750176494064,29.86329313,147.8,147.76,16.70149313]
[1750176494266,7.02,147.8,147.78,16.70149313]
[1750176494485,7.02,147.8,147.79,16.70149313]
[1750176494967,33.7664,147.84,147.79,16.70149313]
[1750176495165,45.94149313,147.83,147.79,16.70149313]
[1750176495668,29.24,147.82,147.79,16.70149313]
[1750176496039,29.22,147.82,147.79,16.70149313]
[1750176496268,29.22,147.82,147.72,33.84591641]